[Event "*** SCC Grand Prix: Titled Tuesday Blitz"]
[Site "Chess.com"]
[Date "2020.09.08"]
[Round "8"]
[White "anasta10"]
[Black "MVM2008"]
[Result "1-0"]
[WhiteElo "2446"]
[BlackElo "2262"]
[TimeControl "180+1"]
[EndTime "11:36:16 PDT"]
[Termination "anasta10 won by checkmate"]

1. d4 {[%clk 0:03:00.9]} 1... d5 {[%clk 0:02:52.3]} 2. c4 {[%clk 0:03:00.1]}
2... Nc6 {[%clk 0:02:41.6]} 3. Nf3 {[%clk 0:02:58.7]} 3... e5 {[%clk 0:02:29.3]}
4. dxe5 {[%clk 0:02:47.1]} 4... d4 {[%clk 0:02:25.8]} 5. e3 {[%clk 0:02:35.8]}
5... Bg4 {[%clk 0:01:39.4]} 6. Be2 {[%clk 0:02:31.7]} 6... Bb4+ {[%clk
0:01:25.4]} 7. Bd2 {[%clk 0:02:28.5]} 7... d3 {[%clk 0:01:19.3]} 8. Bf1 {[%clk
0:02:21.2]} 8... Bxd2+ {[%clk 0:01:11.9]} 9. Nbxd2 {[%clk 0:02:18.1]} 9... Nb4
{[%clk 0:01:04.9]} 10. Qa4+ {[%clk 0:02:16.6]} 10... Nc6 {[%clk 0:01:02]} 11.
Rd1 {[%clk 0:02:06.6]} 11... Ne7 {[%clk 0:00:55.1]} 12. Qb3 {[%clk 0:02:00.9]}
12... a6 {[%clk 0:00:25.1]} 13. Qxd3 {[%clk 0:01:56.4]} 13... O-O {[%clk
0:00:18.4]} 14. Qxd8 {[%clk 0:01:52.5]} 14... Rfxd8 {[%clk 0:00:18.5]} 15. Be2
{[%clk 0:01:53]} 15... b5 {[%clk 0:00:17]} 16. h3 {[%clk 0:01:51.1]} 16... Bf5
{[%clk 0:00:16.1]} 17. cxb5 {[%clk 0:01:45]} 17... axb5 {[%clk 0:00:15.9]} 18.
a3 {[%clk 0:01:44.2]} 18... b4 {[%clk 0:00:16.2]} 19. axb4 {[%clk 0:01:38.2]}
19... Nxb4 {[%clk 0:00:16.8]} 20. O-O {[%clk 0:01:38.8]} 20... Ra2 {[%clk
0:00:16.6]} 21. Nc4 {[%clk 0:01:33.2]} 21... Nd3 {[%clk 0:00:10.7]} 22. Nd4
{[%clk 0:01:27.5]} 22... Nxb2 {[%clk 0:00:02.9]} 23. Nxb2 {[%clk 0:01:27]} 23...
Rxb2 {[%clk 0:00:02]} 24. Nxf5 {[%clk 0:01:27.7]} 24... Rxd1 {[%clk 0:00:01.9]}
25. Nxe7+ {[%clk 0:01:26.2]} 25... Kf8 {[%clk 0:00:01.3]} 26. Bxd1 {[%clk
0:01:24.4]} 26... Kxe7 {[%clk 0:00:01.9]} 27. Bf3 {[%clk 0:01:25]} 27... c5
{[%clk 0:00:02.5]} 28. Rc1 {[%clk 0:01:24.5]} 28... Rb5 {[%clk 0:00:03.2]} 29.
Bd5 {[%clk 0:01:22.5]} 29... Ra5 {[%clk 0:00:01.8]} 30. f4 {[%clk 0:01:22.5]}
30... f6 {[%clk 0:00:02.3]} 31. exf6+ {[%clk 0:01:22.4]} 31... Kxf6 {[%clk
0:00:02.4]} 32. Kf2 {[%clk 0:01:22.9]} 32... g5 {[%clk 0:00:02.7]} 33. fxg5+
{[%clk 0:01:18.6]} 33... Kxg5 {[%clk 0:00:03]} 34. Kf3 {[%clk 0:01:19.3]} 34...
h5 {[%clk 0:00:03.3]} 35. Rc3 {[%clk 0:01:17.1]} 35... Kf5 {[%clk 0:00:03.4]}
36. h4 {[%clk 0:01:13.6]} 36... Ke5 {[%clk 0:00:03.4]} 37. Bf7 {[%clk
0:01:13.6]} 37... Kd6 {[%clk 0:00:02.1]} 38. Bxh5 {[%clk 0:01:13.5]} 38... Ra1
{[%clk 0:00:01.9]} 39. Bg6 {[%clk 0:01:11]} 39... Rf1+ {[%clk 0:00:01.9]} 40.
Kg4 {[%clk 0:01:09.7]} 40... Rg1 {[%clk 0:00:02.1]} 41. g3 {[%clk 0:01:08.7]}
41... Kd5 {[%clk 0:00:01.7]} 42. h5 {[%clk 0:01:07.1]} 42... c4 {[%clk
0:00:02.3]} 43. Bf7+ {[%clk 0:01:05.8]} 43... Ke5 {[%clk 0:00:02.1]} 44. Rxc4
{[%clk 0:01:05.2]} 44... Kf6 {[%clk 0:00:02.5]} 45. Bg6 {[%clk 0:01:04.8]} 45...
Kg7 {[%clk 0:00:02.9]} 46. Rc7+ {[%clk 0:01:04.7]} 46... Kh6 {[%clk 0:00:02.8]}
47. Rh7# {[%clk 0:01:04.1]} 1-0

[Event "*** SCC Grand Prix: Titled Tuesday Blitz"]
[Site "Chess.com"]
[Date "2020.09.08"]
[Round "8"]
[White "mamey78"]
[Black "narutosmith"]
[Result "1-0"]
[WhiteElo "2446"]
[BlackElo "2241"]
[TimeControl "180+1"]
[EndTime "11:36:17 PDT"]
[Termination "mamey78 won by checkmate"]

1. e4 {[%clk 0:02:56.8]} 1... c5 {[%clk 0:03:00]} 2. Nf3 {[%clk 0:02:56.4]} 2...
Nc6 {[%clk 0:03:00.2]} 3. c3 {[%clk 0:02:55.4]} 3... Nf6 {[%clk 0:02:59.7]} 4.
e5 {[%clk 0:02:54.8]} 4... Nd5 {[%clk 0:03:00]} 5. d4 {[%clk 0:02:55.3]} 5...
cxd4 {[%clk 0:03:00.1]} 6. Bc4 {[%clk 0:02:55.7]} 6... e6 {[%clk 0:02:59.8]} 7.
cxd4 {[%clk 0:02:55]} 7... d6 {[%clk 0:02:59.2]} 8. O-O {[%clk 0:02:55]} 8...
Be7 {[%clk 0:02:57.1]} 9. Qe2 {[%clk 0:02:55.2]} 9... O-O {[%clk 0:02:56.3]} 10.
Nc3 {[%clk 0:02:55.4]} 10... Nxc3 {[%clk 0:02:55.7]} 11. bxc3 {[%clk 0:02:56.3]}
11... dxe5 {[%clk 0:02:56]} 12. dxe5 {[%clk 0:02:56.2]} 12... Qa5 {[%clk
0:02:56.2]} 13. a4 {[%clk 0:02:53.5]} 13... Rd8 {[%clk 0:02:49.7]} 14. Bd2
{[%clk 0:02:50.4]} 14... Bd7 {[%clk 0:02:13.5]} 15. Qe4 {[%clk 0:02:38.9]} 15...
Be8 {[%clk 0:02:05]} 16. h4 {[%clk 0:02:35]} 16... Rac8 {[%clk 0:02:00.1]} 17.
Bd3 {[%clk 0:02:10.9]} 17... g6 {[%clk 0:01:55.5]} 18. c4 {[%clk 0:02:10.1]}
18... Qc7 {[%clk 0:01:21.4]} 19. Rfd1 {[%clk 0:01:35.9]} 19... b6 {[%clk
0:00:59.8]} 20. h5 {[%clk 0:01:34.2]} 20... Na5 {[%clk 0:00:50.9]} 21. hxg6
{[%clk 0:01:23.8]} 21... hxg6 {[%clk 0:00:48.8]} 22. Bg5 {[%clk 0:01:09.2]}
22... Nb3 {[%clk 0:00:41.5]} 23. Qh4 {[%clk 0:00:47.9]} 23... Bxg5 {[%clk
0:00:18.3]} 24. Nxg5 {[%clk 0:00:24.6]} 24... Nxa1 {[%clk 0:00:12.3]} 25. Qh7+
{[%clk 0:00:17.8]} 25... Kf8 {[%clk 0:00:12.5]} 26. Qh8+ {[%clk 0:00:17.6]}
26... Ke7 {[%clk 0:00:12.7]} 27. Qf6+ {[%clk 0:00:17.7]} 27... Kf8 {[%clk
0:00:13.1]} 28. Bxg6 {[%clk 0:00:17.5]} 28... Rd2 {[%clk 0:00:11.8]} 29. Rxd2
{[%clk 0:00:11]} 29... Qe7 {[%clk 0:00:08.4]} 30. Qh8# {[%clk 0:00:08.8]} 1-0

[Event "*** SCC Grand Prix: Titled Tuesday Blitz"]
[Site "Chess.com"]
[Date "2020.09.08"]
[Round "8"]
[White "r31415"]
[Black "QuintilianoR"]
[Result "0-1"]
[WhiteElo "2465"]
[BlackElo "2617"]
[TimeControl "180+1"]
[EndTime "11:36:18 PDT"]
[Termination "QuintilianoR won by resignation"]

1. c4 {[%clk 0:02:49.9]} 1... e6 {[%clk 0:02:56.9]} 2. Nf3 {[%clk 0:02:49.3]}
2... Nf6 {[%clk 0:02:55.9]} 3. d4 {[%clk 0:02:49.5]} 3... b6 {[%clk 0:02:54.3]}
4. g3 {[%clk 0:02:47.2]} 4... Bb7 {[%clk 0:02:53.1]} 5. Bg2 {[%clk 0:02:46.7]}
5... Bb4+ {[%clk 0:02:53.5]} 6. Bd2 {[%clk 0:02:45.1]} 6... a5 {[%clk 0:02:53]}
7. O-O {[%clk 0:02:45.4]} 7... O-O {[%clk 0:02:52.8]} 8. Qc2 {[%clk 0:02:43.7]}
8... Be4 {[%clk 0:02:46.9]} 9. Qc1 {[%clk 0:02:42.4]} 9... Nc6 {[%clk
0:02:16.8]} 10. Bf4 {[%clk 0:02:35.3]} 10... Bxf3 {[%clk 0:02:12.6]} 11. exf3
{[%clk 0:02:24.4]} 11... Nxd4 {[%clk 0:02:11.4]} 12. Qd1 {[%clk 0:02:22.5]}
12... Bc5 {[%clk 0:02:04.4]} 13. Be3 {[%clk 0:02:16.8]} 13... Nc6 {[%clk
0:02:01.7]} 14. Bxc5 {[%clk 0:02:15.9]} 14... bxc5 {[%clk 0:02:02.6]} 15. Nc3
{[%clk 0:02:10.4]} 15... Rb8 {[%clk 0:02:00]} 16. Qd2 {[%clk 0:02:07.2]} 16...
d6 {[%clk 0:01:57.6]} 17. Nb5 {[%clk 0:01:59.2]} 17... d5 {[%clk 0:01:43.6]} 18.
f4 {[%clk 0:01:56.9]} 18... dxc4 {[%clk 0:01:18.4]} 19. Qxd8 {[%clk 0:01:55.9]}
19... Nxd8 {[%clk 0:01:19.3]} 20. a4 {[%clk 0:01:50.1]} 20... Nd5 {[%clk
0:01:17.7]} 21. Rac1 {[%clk 0:01:43.6]} 21... c6 {[%clk 0:01:15.9]} 22. Nd6
{[%clk 0:01:39.3]} 22... Rxb2 {[%clk 0:01:13.5]} 23. Nxc4 {[%clk 0:01:38.6]}
23... Rb4 {[%clk 0:01:12.8]} 24. Nxa5 {[%clk 0:01:35.7]} 24... Rxa4 {[%clk
0:00:59]} 25. Rxc5 {[%clk 0:01:35.5]} 25... Ra2 {[%clk 0:00:48.8]} 26. Rfc1
{[%clk 0:01:30.5]} 26... Nb4 {[%clk 0:00:46.5]} 27. Be4 {[%clk 0:01:12]} 27...
Na6 {[%clk 0:00:40.4]} 28. Bb1 {[%clk 0:00:46.1]} 28... Ra1 {[%clk 0:00:28.4]}
29. Nb3 {[%clk 0:00:41.4]} 29... Nxc5 {[%clk 0:00:18.6]} 30. Nxa1 {[%clk
0:00:37.7]} 30... Nd7 {[%clk 0:00:18.5]} 31. Nb3 {[%clk 0:00:35.1]} 31... c5
{[%clk 0:00:14.9]} 32. Nxc5 {[%clk 0:00:33.6]} 32... Nxc5 {[%clk 0:00:15.2]} 33.
Rxc5 {[%clk 0:00:34]} 33... Nb7 {[%clk 0:00:16.1]} 34. Rc7 {[%clk 0:00:32.7]}
34... Nd6 {[%clk 0:00:15.7]} 35. Kg2 {[%clk 0:00:33.2]} 35... g6 {[%clk
0:00:14.9]} 36. Bd3 {[%clk 0:00:33.2]} 36... Rd8 {[%clk 0:00:14.7]} 37. Kf3
{[%clk 0:00:32.2]} 37... Ne8 {[%clk 0:00:13.3]} 38. Be4 {[%clk 0:00:25.3]} 38...
Nxc7 {[%clk 0:00:12.2]} 0-1

[Event "*** SCC Grand Prix: Titled Tuesday Blitz"]
[Site "Chess.com"]
[Date "2020.09.08"]
[Round "8"]
[White "ailime26"]
[Black "natelleka"]
[Result "0-1"]
[WhiteElo "1893"]
[BlackElo "2117"]
[TimeControl "180+1"]
[EndTime "11:36:18 PDT"]
[Termination "natelleka won on time"]

1. e4 {[%clk 0:01:16.7]} 1... e5 {[%clk 0:02:57.3]} 2. Nf3 {[%clk 0:01:15.7]}
2... Nf6 {[%clk 0:02:57.8]} 3. Nc3 {[%clk 0:01:14.9]} 3... Bb4 {[%clk
0:02:56.9]} 4. Nxe5 {[%clk 0:01:10.1]} 4... Bxc3 {[%clk 0:02:43.1]} 5. dxc3
{[%clk 0:01:06.2]} 5... d6 {[%clk 0:02:43]} 6. Nf3 {[%clk 0:01:04.1]} 6... Nxe4
{[%clk 0:02:42.7]} 7. Bd3 {[%clk 0:01:01.1]} 7... d5 {[%clk 0:02:38.4]} 8. Bxe4
{[%clk 0:00:53.8]} 8... dxe4 {[%clk 0:02:38.1]} 9. Qxd8+ {[%clk 0:00:53.3]} 9...
Kxd8 {[%clk 0:02:38.7]} 10. Ng5 {[%clk 0:00:52.7]} 10... Be6 {[%clk 0:02:27.7]}
11. Nxe4 {[%clk 0:00:51.2]} 11... Nd7 {[%clk 0:02:26.8]} 12. O-O {[%clk
0:00:48.4]} 12... c6 {[%clk 0:02:25.7]} 13. Bf4 {[%clk 0:00:47.4]} 13... Re8
{[%clk 0:02:23.2]} 14. Nd6 {[%clk 0:00:40.9]} 14... Rf8 {[%clk 0:02:11.7]} 15.
Nxb7+ {[%clk 0:00:40.2]} 15... Ke8 {[%clk 0:02:10.6]} 16. Nd6+ {[%clk
0:00:37.2]} 16... Ke7 {[%clk 0:02:10.7]} 17. Rfe1 {[%clk 0:00:34.4]} 17... g5
{[%clk 0:01:57.2]} 18. Bg3 {[%clk 0:00:25.4]} 18... Kf6 {[%clk 0:01:54.2]} 19.
Rad1 {[%clk 0:00:23.8]} 19... Kg6 {[%clk 0:01:47.6]} 20. h3 {[%clk 0:00:21.7]}
20... Nf6 {[%clk 0:01:45.4]} 21. b3 {[%clk 0:00:20.6]} 21... Nd5 {[%clk
0:01:42.7]} 22. c4 {[%clk 0:00:19.7]} 22... Nc3 {[%clk 0:01:41.5]} 23. Rd2
{[%clk 0:00:16.7]} 23... Nxa2 {[%clk 0:01:40.7]} 24. Be5 {[%clk 0:00:12.2]}
24... Nb4 {[%clk 0:01:36.8]} 25. Re3 {[%clk 0:00:12]} 25... a5 {[%clk 0:01:31]}
26. Rf3 {[%clk 0:00:11.5]} 26... f6 {[%clk 0:01:30.3]} 27. Bc3 {[%clk
0:00:10.5]} 27... Rad8 {[%clk 0:01:23.2]} 28. Ne4 {[%clk 0:00:06.8]} 28... Rxd2
{[%clk 0:01:18.6]} 29. Nxd2 {[%clk 0:00:07.3]} 29... Nxc2 {[%clk 0:01:16.2]} 30.
Bxa5 {[%clk 0:00:06.9]} 30... Nd4 {[%clk 0:01:15.3]} 31. Re3 {[%clk 0:00:06.4]}
31... Bf7 {[%clk 0:01:12.1]} 32. Bc3 {[%clk 0:00:05.1]} 32... Nf5 {[%clk
0:01:04.6]} 33. Rf3 {[%clk 0:00:04.6]} 33... Be6 {[%clk 0:01:00.4]} 34. Ne4
{[%clk 0:00:03.8]} 34... c5 {[%clk 0:00:53.1]} 35. Nxf6 {[%clk 0:00:03.3]} 35...
Nh4 {[%clk 0:00:48.8]} 36. Rg3 {[%clk 0:00:01.4]} 36... Rxf6 {[%clk 0:00:47.4]}
37. Bxf6 {[%clk 0:00:01.3]} 37... Kxf6 {[%clk 0:00:47.5]} 38. Re3 {[%clk
0:00:01.6]} 38... Nf5 {[%clk 0:00:46.5]} 39. Re4 {[%clk 0:00:01.5]} 39... Nd4
{[%clk 0:00:44.9]} 0-1

[Event "*** SCC Grand Prix: Titled Tuesday Blitz"]
[Site "Chess.com"]
[Date "2020.09.08"]
[Round "8"]
[White "AliKa2810"]
[Black "JoliyRoger"]
[Result "0-1"]
[WhiteElo "2558"]
[BlackElo "2427"]
[TimeControl "180+1"]
[EndTime "11:36:19 PDT"]
[Termination "JoliyRoger won by resignation"]

1. d4 {[%clk 0:02:58.9]} 1... Nf6 {[%clk 0:02:59.3]} 2. c4 {[%clk 0:02:57.9]}
2... e6 {[%clk 0:02:59.8]} 3. Nf3 {[%clk 0:02:57.2]} 3... c5 {[%clk 0:02:59.2]}
4. d5 {[%clk 0:02:56.9]} 4... exd5 {[%clk 0:02:59.8]} 5. cxd5 {[%clk 0:02:57]}
5... d6 {[%clk 0:03:00.7]} 6. Nc3 {[%clk 0:02:55.8]} 6... g6 {[%clk 0:03:01.6]}
7. Nd2 {[%clk 0:02:55.1]} 7... Bg7 {[%clk 0:03:02.5]} 8. e4 {[%clk 0:02:55.5]}
8... O-O {[%clk 0:03:02.7]} 9. Be2 {[%clk 0:02:56]} 9... Re8 {[%clk 0:03:03.1]}
10. O-O {[%clk 0:02:55.4]} 10... a6 {[%clk 0:03:02.7]} 11. a4 {[%clk 0:02:55.1]}
11... Nbd7 {[%clk 0:03:02.8]} 12. h3 {[%clk 0:02:55.7]} 12... Qe7 {[%clk
0:03:02.9]} 13. Re1 {[%clk 0:02:48.8]} 13... h6 {[%clk 0:03:01.5]} 14. a5 {[%clk
0:02:37.3]} 14... g5 {[%clk 0:02:52.3]} 15. Nc4 {[%clk 0:02:32.2]} 15... Ne5
{[%clk 0:02:51.3]} 16. Nb6 {[%clk 0:02:27.3]} 16... Rb8 {[%clk 0:02:50.7]} 17.
Bf1 {[%clk 0:02:16.9]} 17... Ng6 {[%clk 0:02:38.2]} 18. Ra3 {[%clk 0:02:09]}
18... Nd7 {[%clk 0:02:36.2]} 19. Nxc8 {[%clk 0:02:06.4]} 19... Rbxc8 {[%clk
0:02:31.3]} 20. Na4 {[%clk 0:02:03.5]} 20... Nge5 {[%clk 0:02:23.6]} 21. Rg3
{[%clk 0:02:00.2]} 21... Ng6 {[%clk 0:02:20.2]} 22. Bd2 {[%clk 0:01:54.9]} 22...
Rb8 {[%clk 0:02:19]} 23. Bc3 {[%clk 0:01:54.3]} 23... b5 {[%clk 0:02:13.3]} 24.
axb6 {[%clk 0:01:52.4]} 24... Nxb6 {[%clk 0:02:13.7]} 25. Bxa6 {[%clk
0:01:38.7]} 25... Nxa4 {[%clk 0:02:10.6]} 26. Qxa4 {[%clk 0:01:39.6]} 26... Be5
{[%clk 0:02:05.4]} 27. Bxe5 {[%clk 0:01:38.6]} 27... Qxe5 {[%clk 0:02:05.7]} 28.
Bb5 {[%clk 0:01:31.2]} 28... Re7 {[%clk 0:02:03.6]} 29. b3 {[%clk 0:01:30.3]}
29... Reb7 {[%clk 0:02:03.1]} 30. Bc6 {[%clk 0:01:29]} 30... Rb4 {[%clk
0:02:03.1]} 31. Qa2 {[%clk 0:01:23]} 31... Rxe4 {[%clk 0:01:32.3]} 32. Rxe4
{[%clk 0:01:21.9]} 32... Qxe4 {[%clk 0:01:32.8]} 33. Re3 {[%clk 0:01:22.4]}
33... Qf4 {[%clk 0:01:24.1]} 34. Qa7 {[%clk 0:01:21.1]} 34... Rf8 {[%clk
0:01:23.7]} 35. g3 {[%clk 0:01:11.4]} 35... Qf6 {[%clk 0:01:21.1]} 36. Kg2
{[%clk 0:01:07.4]} 36... Ne5 {[%clk 0:01:20.6]} 37. Qc7 {[%clk 0:01:05.1]} 37...
Kg7 {[%clk 0:01:13.2]} 38. Qa7 {[%clk 0:00:52.4]} 38... Rd8 {[%clk 0:00:58.9]}
39. Qa4 {[%clk 0:00:51.4]} 39... Rb8 {[%clk 0:00:55.7]} 40. Qa7 {[%clk 0:00:33]}
40... Rb4 {[%clk 0:00:55.2]} 41. Qc7 {[%clk 0:00:32.4]} 41... h5 {[%clk
0:00:51.6]} 42. Qc8 {[%clk 0:00:30.5]} 42... h4 {[%clk 0:00:48.9]} 43. Qe8
{[%clk 0:00:17.4]} 43... Rd4 {[%clk 0:00:44.5]} 44. Qc8 {[%clk 0:00:16.7]} 44...
Rd2 {[%clk 0:00:42.9]} 0-1

[Event "*** SCC Grand Prix: Titled Tuesday Blitz"]
[Site "Chess.com"]
[Date "2020.09.08"]
[Round "8"]
[White "Konek-Gorbunok"]
[Black "bazar-wokzal"]
[Result "0-1"]
[WhiteElo "2337"]
[BlackElo "2479"]
[TimeControl "180+1"]
[EndTime "11:36:19 PDT"]
[Termination "bazar-wokzal won on time"]

1. d4 {[%clk 0:03:00.9]} 1... Nf6 {[%clk 0:02:58.4]} 2. Nf3 {[%clk 0:03:00.5]}
2... e6 {[%clk 0:02:58.4]} 3. g3 {[%clk 0:02:57.9]} 3... b5 {[%clk 0:02:58.2]}
4. a4 {[%clk 0:02:57.2]} 4... b4 {[%clk 0:02:56.5]} 5. Bg2 {[%clk 0:02:57.3]}
5... Bb7 {[%clk 0:02:56.5]} 6. O-O {[%clk 0:02:57.2]} 6... c5 {[%clk 0:02:56.4]}
7. dxc5 {[%clk 0:02:55]} 7... Bxc5 {[%clk 0:02:54.1]} 8. c4 {[%clk 0:02:55.4]}
8... bxc3 {[%clk 0:02:49.9]} 9. Nxc3 {[%clk 0:02:54.7]} 9... O-O {[%clk
0:02:49.6]} 10. Bf4 {[%clk 0:02:53.8]} 10... Na6 {[%clk 0:02:44]} 11. Nb5 {[%clk
0:02:49.9]} 11... Ne4 {[%clk 0:02:38]} 12. Ng5 {[%clk 0:02:26.5]} 12... d5
{[%clk 0:02:10.4]} 13. Nxe4 {[%clk 0:02:16.6]} 13... dxe4 {[%clk 0:02:10.5]} 14.
Bd6 {[%clk 0:01:54.5]} 14... Re8 {[%clk 0:01:58.9]} 15. Bxc5 {[%clk 0:01:52]}
15... Nxc5 {[%clk 0:01:59.3]} 16. Nd6 {[%clk 0:01:51.8]} 16... Re7 {[%clk
0:01:46.5]} 17. b4 {[%clk 0:01:51.2]} 17... Nxa4 {[%clk 0:01:20.1]} 18. Nxb7
{[%clk 0:00:57.1]} 18... Qxd1 {[%clk 0:01:15.8]} 19. Rfxd1 {[%clk 0:00:54.8]}
19... Nc3 {[%clk 0:01:14]} 20. Rd8+ {[%clk 0:00:53.5]} 20... Rxd8 {[%clk
0:01:13.2]} 21. Nxd8 {[%clk 0:00:53.7]} 21... Rc7 {[%clk 0:00:59.1]} 22. Kf1
{[%clk 0:00:29.1]} 22... Kf8 {[%clk 0:00:55.7]} 23. b5 {[%clk 0:00:19.6]} 23...
Nxb5 {[%clk 0:00:32.4]} 24. Bxe4 {[%clk 0:00:17.6]} 24... Nd4 {[%clk 0:00:22.5]}
25. Nb7 {[%clk 0:00:14.7]} 25... Nb3 {[%clk 0:00:21.3]} 26. Rd1 {[%clk
0:00:08.1]} 26... f5 {[%clk 0:00:19.5]} 27. Bf3 {[%clk 0:00:06.6]} 27... Ke7
{[%clk 0:00:17.3]} 28. Kg2 {[%clk 0:00:03.6]} 28... a5 {[%clk 0:00:17.3]} 0-1

[Event "*** SCC Grand Prix: Titled Tuesday Blitz"]
[Site "Chess.com"]
[Date "2020.09.08"]
[Round "8"]
[White "OminousOmen"]
[Black "Konavets"]
[Result "1/2-1/2"]
[WhiteElo "2953"]
[BlackElo "3066"]
[TimeControl "180+1"]
[EndTime "11:36:22 PDT"]
[Termination "Game drawn by agreement"]

1. d4 {[%clk 0:03:00.9]} 1... Nf6 {[%clk 0:02:59.1]} 2. c4 {[%clk 0:03:01]} 2...
e6 {[%clk 0:02:58.9]} 3. g3 {[%clk 0:02:59.1]} 3... c5 {[%clk 0:02:58.2]} 4. Nf3
{[%clk 0:02:59.2]} 4... cxd4 {[%clk 0:02:53.5]} 5. Nxd4 {[%clk 0:03:00.1]} 5...
Nc6 {[%clk 0:02:53.9]} 6. Bg2 {[%clk 0:02:58.5]} 6... Qb6 {[%clk 0:02:54.1]} 7.
Nb3 {[%clk 0:02:51.3]} 7... Bb4+ {[%clk 0:02:53.9]} 8. Nc3 {[%clk 0:02:50.2]}
8... a5 {[%clk 0:02:54.6]} 9. c5 {[%clk 0:02:35.3]} 9... Bxc5 {[%clk 0:02:33.5]}
10. Nxc5 {[%clk 0:02:33.5]} 10... Qxc5 {[%clk 0:02:34.4]} 11. O-O {[%clk
0:02:33.9]} 11... O-O {[%clk 0:02:32.5]} 12. Be3 {[%clk 0:02:28.4]} 12... Qe7
{[%clk 0:02:27.5]} 13. Na4 {[%clk 0:02:25]} 13... d6 {[%clk 0:02:25.8]} 14. Nb6
{[%clk 0:02:25.1]} 14... Ra6 {[%clk 0:02:24.9]} 15. Rc1 {[%clk 0:02:19.3]} 15...
Ng4 {[%clk 0:02:12.3]} 16. Nxc8 {[%clk 0:02:19.5]} 16... Rxc8 {[%clk 0:02:11.7]}
17. Bf4 {[%clk 0:02:20.1]} 17... e5 {[%clk 0:02:06.6]} 18. Bd2 {[%clk 0:02:12]}
18... Nf6 {[%clk 0:02:06]} 19. Qa4 {[%clk 0:02:02.8]} 19... h6 {[%clk
0:02:00.2]} 20. Qb5 {[%clk 0:01:35.1]} 20... d5 {[%clk 0:01:53.5]} 21. Rfd1
{[%clk 0:01:18.2]} 21... Rd8 {[%clk 0:01:48.5]} 22. Be3 {[%clk 0:01:06.7]} 22...
Qb4 {[%clk 0:01:48.4]} 23. Rc5 {[%clk 0:00:51.5]} 23... Rb6 {[%clk 0:01:22.5]}
24. Qxb4 {[%clk 0:00:51.4]} 24... Rxb4 {[%clk 0:01:23.4]} 25. b3 {[%clk
0:00:49.5]} 25... a4 {[%clk 0:01:15]} 26. bxa4 {[%clk 0:00:35.1]} 26... Rxa4
{[%clk 0:01:15.2]} 27. Bxd5 {[%clk 0:00:21.3]} 27... Rxd5 {[%clk 0:01:12.6]} 28.
Rcxd5 {[%clk 0:00:22.2]} 28... Nxd5 {[%clk 0:01:13]} 29. Rxd5 {[%clk 0:00:23.1]}
29... Rxa2 {[%clk 0:01:13.6]} 30. Rb5 {[%clk 0:00:17]} 30... Rxe2 {[%clk
0:01:11.7]} 31. Rxb7 {[%clk 0:00:17.5]} 31... f6 {[%clk 0:01:02.5]} 32. Rc7
{[%clk 0:00:14.7]} 32... Nb4 {[%clk 0:01:01.7]} 33. Rb7 {[%clk 0:00:10.3]} 33...
Nd5 {[%clk 0:01:01.1]} 34. Bc5 {[%clk 0:00:10.9]} 34... Rc2 {[%clk 0:01:00.1]}
35. Bd6 {[%clk 0:00:11.3]} 35... Nc3 {[%clk 0:00:59.2]} 36. Rb8+ {[%clk
0:00:09.2]} 36... Kh7 {[%clk 0:00:59]} 37. Rb7 {[%clk 0:00:09.7]} 37... Ne4
{[%clk 0:00:39.5]} 38. Bf8 {[%clk 0:00:08.6]} 38... Rc8 {[%clk 0:00:38.6]} 39.
Rxg7+ {[%clk 0:00:05]} 39... Kh8 {[%clk 0:00:38.9]} 40. Rg4 {[%clk 0:00:04.2]}
40... f5 {[%clk 0:00:33.7]} 41. Rxe4 {[%clk 0:00:04.4]} 41... fxe4 {[%clk
0:00:33.2]} 42. Bxh6 {[%clk 0:00:05.3]} 1/2-1/2

[Event "*** SCC Grand Prix: Titled Tuesday Blitz"]
[Site "Chess.com"]
[Date "2020.09.08"]
[Round "8"]
[White "iLuusions"]
[Black "Andrii_Prydun"]
[Result "1-0"]
[WhiteElo "2565"]
[BlackElo "2403"]
[TimeControl "180+1"]
[EndTime "11:36:22 PDT"]
[Termination "iLuusions won by resignation"]

1. Nf3 {[%clk 0:03:00.9]} 1... d5 {[%clk 0:02:28.6]} 2. e3 {[%clk 0:02:59.6]}
2... Nf6 {[%clk 0:02:28.5]} 3. c4 {[%clk 0:02:59.3]} 3... c6 {[%clk 0:02:29.4]}
4. b3 {[%clk 0:02:59.5]} 4... e6 {[%clk 0:02:28.9]} 5. Nc3 {[%clk 0:02:59.9]}
5... Bd6 {[%clk 0:02:29.8]} 6. Bb2 {[%clk 0:02:59.9]} 6... Qe7 {[%clk
0:02:30.4]} 7. d4 {[%clk 0:03:00.3]} 7... Ba3 {[%clk 0:02:30.7]} 8. Bxa3 {[%clk
0:02:57.7]} 8... Qxa3 {[%clk 0:02:31.6]} 9. Qc2 {[%clk 0:02:56.9]} 9... O-O
{[%clk 0:02:31.5]} 10. Bd3 {[%clk 0:02:54.9]} 10... Nbd7 {[%clk 0:02:31.6]} 11.
O-O {[%clk 0:02:53.4]} 11... b6 {[%clk 0:02:31.5]} 12. Ne5 {[%clk 0:02:39.2]}
12... Qd6 {[%clk 0:02:31.3]} 13. f4 {[%clk 0:02:33.4]} 13... Bb7 {[%clk
0:02:31]} 14. e4 {[%clk 0:02:22.4]} 14... c5 {[%clk 0:02:29.9]} 15. Nxd7 {[%clk
0:01:44]} 15... Nxd7 {[%clk 0:02:25.6]} 16. e5 {[%clk 0:01:42]} 16... Qe7 {[%clk
0:02:22.7]} 17. cxd5 {[%clk 0:01:27.5]} 17... cxd4 {[%clk 0:02:00.5]} 18. Bxh7+
{[%clk 0:01:07.3]} 18... Kh8 {[%clk 0:02:00.2]} 19. d6 {[%clk 0:01:07.4]} 19...
Qh4 {[%clk 0:01:59.3]} 20. Be4 {[%clk 0:01:02]} 20... Rac8 {[%clk 0:01:42.7]}
21. Bxb7 {[%clk 0:00:59.4]} 21... Rxc3 {[%clk 0:01:42.5]} 22. Qd2 {[%clk
0:00:57.5]} 22... f6 {[%clk 0:01:16.1]} 23. Qxd4 {[%clk 0:00:55.7]} 23... Rc5
{[%clk 0:01:15.2]} 24. exf6 {[%clk 0:00:37.9]} 24... Rxf6 {[%clk 0:01:05.5]} 25.
Rf3 {[%clk 0:00:37.8]} 25... e5 {[%clk 0:00:48.9]} 26. Qa4 {[%clk 0:00:25.8]}
26... Qg4 {[%clk 0:00:39.7]} 27. Rh3+ {[%clk 0:00:22.3]} 27... Kg8 {[%clk
0:00:39]} 28. fxe5 {[%clk 0:00:19]} 28... Rf4 {[%clk 0:00:12.2]} 29. Qxa7 {[%clk
0:00:17.6]} 29... Rc2 {[%clk 0:00:10.3]} 30. Qa8+ {[%clk 0:00:16.6]} 30... Kf7
{[%clk 0:00:10.5]} 31. Bd5+ {[%clk 0:00:14.6]} 31... Kg6 {[%clk 0:00:10.6]} 32.
Qe8+ {[%clk 0:00:13.4]} 32... Kf5 {[%clk 0:00:09]} 33. Be6+ {[%clk 0:00:08.9]}
33... Ke4 {[%clk 0:00:08.3]} 34. Bxg4 {[%clk 0:00:09.4]} 1-0